Cogmind - Beta 13 @@@ ROGUE MODE // 2024.03.30 @ 17:51:44 Player: firstiteration Result: Destroyed by L-31 Rogue with Katana Performance ------------- Evolutions (2) 1000 Regions Visited (3) 600 Robots Destroyed (25) 125 Value Destroyed (703) 703 Prototype IDs (2) 40 Alien Tech Used (0) 0 Bonus (114) 114 TOTAL SCORE: 2582 Bonus ------- High Alert Combat Kills 114 Cogmind --------- Core Integrity 0/550 Matter 266/300 Energy 100/100 System Corruption 12% Temperature Cool (0) Movement Core (50) Location -8/Materials Parts ------- > --- POWER (2) -------- (None) > --- PROPULSION (3) --- (None) > --- UTILITY (4) ------ (None) > --- WEAPON (2) ------- (None) > --- INVENTORY (5) ---- Improved Targeting Computer Improved Targeting Computer Improved Targeting Computer Peak State ------------ > --- POWER ------------ Ion Engine Nuclear Core > --- PROPULSION ------- Aluminum Leg Makeshift Leg Makeshift Leg > --- UTILITY ---------- Thermal Generator Disposable Heat Sink Hardlight Generator System Shield > --- WEAPON ----------- Small Laser Shock Bomb Launcher > --- INVENTORY -------- Ion Engine Aluminum Leg Thermal Generator EM Pulse Gun Assault Rifle [Rating: 28] Favorites ----------- Power Ion Engine Engine Ion Engine Power Core Nuclear Core Propulsion Light Treads Treads Light Treads Leg Makeshift Leg Utility Light Armor Plating Device Disposable Heat Sink Storage Small Storage Unit Processor Improved Targeting Computer Hackware System Shield Protection Light Armor Plating Weapon Assault Rifle Energy Gun Small Laser Ballistic Gun Assault Rifle Launcher Grenade Launcher Build | -11 -10 -10 -8 ------- Run | Yrd Mat Sub Mat Slots Evolved 4 | . . . 4 Power 1 | . . . 1 Propulsion 1 | . . . 1 Utility 2 | . . . 2 Weapon . | . . . . Parts Attached 36 | 6 5 5 20 Power 5 | 1 . 1 3 Engine 3 | 1 . 1 1 Core 2 | . . . 2 Reactor . | . . . . Propulsion 9 | 2 . 2 5 Treads 4 | 2 . . 2 Leg 5 | . . 2 3 Wheel . | . . . . Hover . | . . . . Flight . | . . . . Utility 15 | 1 4 1 9 Device 6 | . 1 1 4 Storage 1 | 1 . . . Processor 4 | . 1 . 3 Hackware 1 | . . . 1 Protection 3 | . 2 . 1 Artifact . | . . . . Weapon 7 | 2 1 1 3 Energy Gun 3 | 1 . 1 1 Energy Cannon . | . . . . Ballistic Gun 2 | 1 . . 1 Ballistic Cannon . | . . . . Launcher 2 | . 1 . 1 Special Weapon . | . . . . Impact Weapon . | . . . . Slashing Weapon . | . . . . Piercing Weapon . | . . . . Special Melee Weapon . | . . . . Unidentified Prototypes . | . . . . Corrupted Parts 2 | . . . 2 System Corruption 12 | . . . 12 Parts Lost 18 | . . 3 15 Power 3 | . . . 3 Propulsion 5 | . . . 5 Utility 5 | . . 2 3 Weapon 5 | . . 1 4 Highest Loss Streak 12 | . . 2 12 To Critical Strikes . | . . . . Average Slot Usage (%) 88 | . 97 94 75 Engine 11 | . 14 14 6 Core 2 | . . . 7 Treads 15 | . 28 14 2 Leg 10 | . . 13 19 Device 10 | . 6 11 13 Storage 2 | . 7 . . Processor 1 | . . . 2 Hackware 2 | . . . 7 Protection 7 | . 11 12 . Energy Gun 6 | . 2 8 9 Ballistic Gun 10 | . 14 14 4 Launcher 6 | . 11 5 2 Naked Turns 10 | . . . 10 Heaviest Build 32 | 14 18 14 32 Greatest Support 50 | 40 40 40 50 Greatest Overweight (x) . | . . . . Average Overweight (x) . | . . . . Largest Inventory Capacity 8 | 8 8 5 5 Average Capacity 5 | 7 6 5 5 Most Carried 8 | 8 8 5 5 Average Carried 4 | 4 5 4 3 Final Capacity 8 | 8 5 5 5 Final Carried 6 | 6 5 4 3 Class Distribution -------------------- 56% | Mutant 43% | Scavenger-Mutant Dominant Class ---------------- Mutant | -10/Materials Scavenger-Mutant | -10/Subcaves Scavenger-Mutant | -8/Materials Resources | -11 -10 -10 -8 ----------- Run | Yrd Mat Sub Mat Matter Collected 726 | 266 140 107 213 Remotely . | . . . . Salvage Created 902 | . 164 101 637 Parts 55 | . 11 11 33 Haulers Intercepted . | . . . . Recyclers Shooed 1 | . 1 . . Parts Field Recycled . | . . . . Retrieved Matter . | . . . . Parts Self-Destructed 9 | . . 9 . Prevented . | . . . . Kills | -11 -10 -10 -8 ------- Run | Yrd Mat Sub Mat Combat Hostiles Destroyed 22 | . 5 5 12 Guns 15 | . 5 5 5 AOE 4 | . . . 4 Classes Destroyed 7 | . 3 1 3 Builder 2 | . . . 2 Watcher 1 | . 1 . . Swarmer 9 | . 3 4 2 Grunt 9 | . 2 . 7 Duelist 1 | . . . 1 Sentry 2 | . . . 2 Subdweller 1 | . . 1 . Best Kill Streak 7 | . 5 4 7 Combat Bots Only 7 | . 5 4 7 Max Kills in Single Turn 3 | . 1 1 3 Gunslinging . | . . . . Exploded 3 | . . . 3 Melee . | . . . . Uniques/NPCs Destroyed . | . . . . Combat | -11 -10 -10 -8 -------- Run | Yrd Mat Sub Mat Hostile Shots Fired 242 | . 40 65 137 Missed 80 | . 9 28 43 Damage Taken 2393 | . 280 448 1665 Core 662 | . 63 45 554 Absorbed by Shields . | . . . . Regen/Repaired (Parts) 99 | . . . 99 Core Remaining (%) 78 | 100 . 56 . Volleys Fired 81 | 2 30 22 27 Largest 2 | 2 1 2 2 Hottest 76 | 60 20 60 76 Shots Fired 109 | 4 30 35 40 Gun 96 | 4 30 35 27 Cannon . | . . . . Launcher 13 | . . . 13 Special . | . . . . Kinetic 68 | 2 30 22 14 Thermal 25 | . . 13 12 Explosive . | . . . . Electromagnetic 16 | 2 . . 14 Robot Hit Streak 11 | 3 6 5 11 Robot Miss Streak 5 | 1 3 2 5 Penetration Max . | . . . . Secondary Targets . | . . . . Shots Hit Robots 66 | 3 18 20 25 Core Hits 38 | . 10 7 21 Critical Kills . | . . . . Critical Parts Destroyed . | . . . . Critical Strikes . | . . . . Melee Attacks . | . . . . Impact . | . . . . Slashing . | . . . . Piercing . | . . . . Sneak Attacks . | . . . . Combat Hostiles . | . . . . Follow-up Attacks . | . . . . Damage Inflicted 1578 | 37 228 257 1056 Guns 762 | 37 228 257 240 Cannons . | . . . . Explosions 816 | . . . 816 Melee . | . . . . Ramming . | . . . . Kinetic 607 | 10 228 203 166 Thermal 211 | . . 54 157 Explosive . | . . . . Electromagnetic 760 | 27 . . 733 Impact . | . . . . Slashing . | . . . . Piercing . | . . . . Highest Corruption 12 | . . . 12 Average Corruption 11 | . . . 11 Corruption Purged . | . . . . Corruption Blocked . | . . . . Effects 5 | . . . 5 Message Errors 1 | . . . 1 Matter Fused 1 | . . . 1 Energy Discharges 1 | . . . 1 Data Loss (minor) 1 | . . . 1 Misfires 1 | . . . 1 Overload Shots . | . . . . Overflow Damage 13 | . . . 13 Projectiles . | . . . . Explosions 13 | . . . 13 Melee . | . . . . Knockbacks . | . . . . Impact . | . . . . Kinetic . | . . . . Secondary . | . . . . Self-Inflicted Damage 140 | . . . 140 Shots 10 | . . . 10 Rammed . | . . . . Targets Rammed . | . . . . Kicked . | . . . . Crushed . | . . . . Highest Temperature 81 | . 2 10 81 Average Temperature 30 | . 2 6 33 Received Heat Transfer 903 | . 51 150 702 Siege Activations . | . . . . Robots Corrupted 3 | . . . 3 Combat Hostiles 3 | . . . 3 Parts Fried 4 | . . . 4 Impact Corruptions . | . . . . Robots Melted . | . . . . Combat Hostiles . | . . . . Parts Melted . | . . . . Heat Transferred 437 | . . 125 312 Parts Sabotaged . | . . . . Parts Stolen . | . . . . Parts Stripped . | . . . . Power Chain Reactions 2 | . . . 2 Alert | -11 -10 -10 -8 ------- Run | Yrd Mat Sub Mat Peak Influence 588 | . 187 . 588 Initial 457 | . . . 457 Average 237 | . 75 . 481 Maximum Alert Level 2 | . . . 2 Low Security (%) 57 | 100 100 . . Level 1 . | . . . 1 Level 2 41 | . . . 98 Level 3 . | . . . . Level 4 . | . . . . Level 5 . | . . . . High Security . | . . . . Max Security . | . . . . Squads Dispatched 4 | . 1 . 3 Investigation 2 | . 1 . 1 Extermination . | . . . . Reinforcement 2 | . . . 2 Assault . | . . . . Garrison . | . . . . Intercept . | . . . . Searches Triggered . | . . . . Construction Impeded 1 | . . . 1 Haulers Reinforced . | . . . . Active Scanning Responses . | . . . . Cargo Convoy Interrupts . | . . . . Stealth | -11 -10 -10 -8 --------- Run | Yrd Mat Sub Mat Distress Signals 3 | . 2 . 1 Communications Jammed . | . . . . Distress Signals . | . . . . Times Spotted 75 | . 12 40 23 Peak Tracking Total 10 | . 6 6 10 Tactical Retreats 6 | . 1 3 2 Traps | -11 -10 -10 -8 ------- Run | Yrd Mat Sub Mat Traps Triggered . | . . . . Indirectly . | . . . . Trap Hack Attempts . | . . . . Triggered . | . . . . Disarmed . | . . . . Reprogrammed . | . . . . Reused . | . . . . Traps Extracted . | . . . . Installed . | . . . . Triggered . | . . . . Machines | -11 -10 -10 -8 ---------- Run | Yrd Mat Sub Mat Machines Disabled . | . . . . Max in Single Turn . | . . . . Machines Repaired . | . . . . Machines Dismantled . | . . . . Machines Sabotaged . | . . . . Overloaded Fab Kills . | . . . . Hacking | -11 -10 -10 -8 --------- Run | Yrd Mat Sub Mat Machines Accessed 4 | . 2 . 2 Terminals 3 | . 2 . 1 Fabricators . | . . . . Repair Stations 1 | . . . 1 Recycling Units . | . . . . Scanalyzers . | . . . . Garrison Access . | . . . . Total Hacks 19 | . 12 . 7 Successful 11 | . 5 . 6 Failed 8 | . 7 . 1 Catastrophic 2 | . 2 . . Database Lockouts . | . . . . Manual . | . . . . Terminals 16 | . 12 . 4 Fabricators . | . . . . Repair Stations 3 | . . . 3 Recycling Units . | . . . . Scanalyzers . | . . . . Garrison Access . | . . . . Terminal Hacks 8 | . 5 . 3 Record 6 | . 3 . 3 Prototype ID Bank 1 | . 1 . . Reinforcement Status 1 | . 1 . . Fabricator Hacks . | . . . . Repair Station Hacks 3 | . . . 3 Scan Component 1 | . . . 1 Repair 1 | . . . 1 Refit 1 | . . . 1 Recycling Unit Hacks . | . . . . Scanalyzer . | . . . . Garrison Access Hacks . | . . . . Unauthorized Hacks . | . . . . Terminals . | . . . . Fabricators . | . . . . Repair Stations . | . . . . Recycling Units . | . . . . Scanalyzers . | . . . . Garrison Access . | . . . . Data Cores Recovered . | . . . . Used . | . . . . Hacking Detections 4 | . 2 . 2 Full Trace Events 1 | . 1 . . Feedback Events . | . . . . Feedback Blocked . | . . . . Robot Schematics Acquired . | . . . . Robots Built . | . . . . Authchips . | . . . . Time . | . . . . Total Robot Build Rating . | . . . . Part Schematics Acquired . | . . . . Parts Built . | . . . . Authchips . | . . . . Time . | . . . . Total Part Build Rating . | . . . . Parts Repaired 1 | . . . 1 Time 26 | . . . 26 Parts Recycled . | . . . . Recycled Matter . | . . . . Retrieved Matter . | . . . . Retrieved Components . | . . . . Parts Scanalyzed . | . . . . Part Schematics Acquired . | . . . . Parts Damaged . | . . . . Bothacking | -11 -10 -10 -8 ------------ Run | Yrd Mat Sub Mat Used RIF Installer . | . . . . Robots Hacked . | . . . . Non-combat . | . . . . Combat . | . . . . Robot Hacks Applied . | . . . . Relay Couplers Released . | . . . . Fabnet Peak Effective % . | . . . . Robots Rewired . | . . . . Allies Hacked . | . . . . Hacks Repelled . | . . . . Allies | -11 -10 -10 -8 -------- Run | Yrd Mat Sub Mat Total Allies . | . . . . Largest Group . | . . . . Highest-Rated Group . | . . . . Highest-Rated Ally . | . . . . Total Orders . | . . . . Ally Attacks . | . . . . Total Damage . | . . . . Kills . | . . . . Allies Corrupted . | . . . . Allies Melted . | . . . . Intel | -11 -10 -10 -8 ------- Run | Yrd Mat Sub Mat Robot Analysis Total . | . . . . Derelict Logs Recovered . | . . . . Drone Launches . | . . . . Drone Recoveries . | . . . . Exploration | -11 -10 -10 -8 ------------- Run | Yrd Mat Sub Mat Turns Passed 1715 | 165 601 390 559 Spaces Moved 887 | 93 267 214 313 Core 13 | 9 . . 4 Treads 480 | 84 267 102 27 Legs 394 | . . 112 282 Wheels . | . . . . Hover . | . . . . Flight . | . . . . Fastest Speed 50 | 50 160 140 50 Average Speed 147 | 149 160 149 134 Slowest Speed 160 | 160 160 160 160 Overloaded Moves . | . . . . Propulsion Burnouts . | . . . . Robots Hopped . | . . . . Cave-ins Triggered . | . . . . Exploration Rate (%) 19 | 9 38 8 21 Regions Visited 3 Branch Regions 1 Pre-discovered Areas . | . . . . Known Exits Taken . | . . . . Unknown Exits Taken 3 | 1 1 1 . Scrap Searched . | . . . . Spaces Dug . | . . . . Terrain Destroyed 3 | . . . 3 Melee . | . . . . Projectile . | . . . . AOE 3 | . . . 3 Terrain Rammed . | . . . . Walls Destroyed . | . . . . Machines Disabled . | . . . . Actions | -11 -10 -10 -8 --------- Run | Yrd Mat Sub Mat Total 1191 | 115 413 249 414 Wait 122 | 3 95 1 23 Move 884 | 92 266 213 313 Hop . | . . . . Pick Up 44 | 12 9 4 19 Fast Attach 4 | . . 1 3 Attach 23 | 6 1 1 15 Detach . | . . . . Swap 9 | . 4 3 2 Drop 24 | . 8 4 12 Fire 81 | 2 30 22 27 Melee . | . . . . Ram . | . . . . Kick . | . . . . Crush . | . . . . Escape Stasis . | . . . . Rewire . | . . . . Trap . | . . . . Miscellaneous . | . . . . Route ------- -11/Scrapyard -10/Materials (discovered 3 exits: [*Mat] / *Min / [*Sub]) -10/Subcaves (discovered 2 exits: *Mat / [*Rec]) -8/Materials History --------- Turn | Location | Event 8 | -11/Scrapyard | Discovered new exit (range 14) 166 | -11/Scrapyard | Entered Materials 304 | -10/Materials | Build established: Mutant 398 | -10/Materials | Discovered new exit (range 12) 421 | -10/Materials | Identified exit to Mines 458 | -10/Materials | Discovered new exit (range 3) 753 | -10/Materials | Discovered new exit (range 10) 767 | -10/Materials | Entered Subcaves 819 | -10/Subcaves | Shifting Twisted Machinery released Flamer 826 | -10/Subcaves | Shifting Twisted Machinery released Piercing Trap 900 | -10/Subcaves | Discovered new exit (range 11) 1060 | -10/Subcaves | Discovered new exit (range 12) 1157 | -10/Subcaves | Entered Materials 1157 | -8/Materials | Evolved 4 slots: Power x1, Propulsion x1, Utility x2 1243 | -8/Materials | Build established: Scavenger-Mutant 1354 | -8/Materials | Repaired Assault Rifle? 1619 | -8/Materials | System corruption reached 10% 1634 | -8/Materials | Lost 12 parts (2p4n3u3w) 1646 | -8/Materials | Destroyed 7 combat bots 1707 | -8/Materials | Core integrity fell below 50% 1713 | -8/Materials | Core integrity fell below 20% 1716 | -8/Materials | Destroyed by L-31 Rogue with Katana Last Messages --------------- Assault Rifle destroyed. Critical hit (Burn: +37). K-01 Serf collects debris. Critical hit (Burn: +37). K-01 Serf collects debris. Lgt. Armor Plating severed. Critical hit (Burn: +37). Lgt. Nuclear Core destroyed. K-01 Serf collects debris. Lgt. Treads destroyed. Critical hit (Burn: +37). Dropped Lgt. Treads. Discarded Imp. Targeting Computer. S-10 Pest destroyed. Discarded Imp. Targeting Computer. System Shield severed. Critical hit (Burn: +37). K-01 Serf collects debris. System corrupted: Matter fused (-10). K-01 Serf collects debris. Map ----- +----------------------------------------------------+ | ?????????????????????????????????????????????????? | | ?????????????????????????????????????????????????? | | ?????????????????????????????????????????????????? | | ?????????????????????????????????????????????????? | | ?????????????????????????????????????????????????? | | ?????????????????????????????????????????????????? | | ?????????????????????????????????????????????????? | | ?????????????????????????????????????????????????? | | ?????????????????????????????????????????????????? | | ?????????????????????????????????????????????????? | | ????????????????????????????????????? ???????????? | | ????????????????????????????????????? ???????????? | | ????????????????????????????????????? ???????????? | | ????????????????????????????????????? ???????????? | | ????????????????????????????????????? ??????????? | | ????????????????????????????????????? ???????????# | | ???????????????????????????????????## ##?????????# | | ???????????????????????????????????## ##????????## | | ???????????????????????????????????## ##????????## | | ???????????????????????????????????## ##????????## | | ????????????????????????????? ### #########?## | | ??????????????# ??################### #########?## | | ??????????????# # # # # ##### | | ??????????????+ gg = # # # """##### | | ??????????????????#g%= kl # %# # """### | | ??????????????????# g[ @= # %[+ / """### | | ??????????????????# ""T""[ ! # ==%# # ### | | ??????????????????# """""! ! # =[%!# # ! ### | | ??????????????????# !![=! #=%== # ######/### | | ??????????????????##### ############# #### | | ??????????????????????###????######## ##?## # | | ???????????????????????????????????## ##?## ##! | | ???????????????????????????????????## ##?######## | | ???????????????????????????????????+ ##?######## | | ???????????????????????????????????## # ???????## | | ???????????????????????????????????## ?????????##+ | | ????????????????????????????????????? ?????????# | | ????????????????????????????????????? ?????????# | | ????????????????????????????????????? ?????????# | | ????????????????????????????????????? ?????????# | | ????????????????????????????????????? ?????????### | | ?????????????????????????????????????????????????? | | ?????????????????????????????????????????????????? | | ?????????????????????????????????????????????????? | | ?????????????????????????????????????????????????? | | ?????????????????????????????????????????????????? | | ?????????????????????????????????????????????????? | | ?????????????????????????????????????????????????? | | ?????????????????????????????????????????????????? | | ?????????????????????????????????????????????????? | +----------------------------------------------------+ Best States ------------- Heat Dissipation 31 Coolant Potential 50 Energy Generation 19 Energy Capacity 390 Matter Stores 300 Matter Capacity 300 Sight Range 16 Terrain Scan Density 10 Armor Coverage 150 Evasion (%) 55 Targeting Accuracy 12 Recoil Reduction 2 Defensive Hacking 10 Item Schematics ----------------- None Robot Schematics ------------------ None Fabricated ------------ Nothing Alien Tech Used ----------------- None Achievements -------------- One Hack Too Far Part-time Mechanic System Compromised Challenges ------------ None Game ------ Seed AntigravResetSpoofer Manual? 0 Play Time 00:27:40 Cumulative 1.5 hours Start 2024.03.30 @ 17:20:56 End 2024.03.30 @ 17:51:44 Sessions 1 Manual Loads 0 Difficulty Rogue Special Mode None Game No. 4 Rogue 4 Adventurer 0 Explorer 0 Win Type - Total 0 Types 0/0/0/0/0/0/0/0/0 Lore% 1 Gallery% 4 Achievement% 3 Wizard Run 0 Options --------- Layout 1 ASCII 0 Keyboard 0 Movement Mouse Keybinds 0 Fullscreen 1 Font 24/Smallcaps Map View 50x35 Zoom Use 0% Tactical HUD 0 Map Filters NONE Filters NONE Steam 1 RUN: 6993ae5d-e4d4-40dc-888d-f2a652d6c1e6